fUSD/lending_fUSD_20240802
["ID","MTS","AMOUNT","RATE_DAILY","PERIOD"]
[333887140,1722599440731,-500.0,0.00019178,2]
[333887142,1722599440740,-500.0,0.00019178,2]
[333887144,1722599440749,-400.0,0.00019178,2]
[333887146,1722599440758,-500.0,0.00019178,2]
[333887147,1722599440767,-1027.12,0.00019178,2]
[333887149,1722599440777,-854.33,0.00019178,2]
[333887151,1722599440786,-1226.98,0.00019178,2]
[333887153,1722599440795,-819.17,0.00019178,2]
[333887155,1722599440805,-500.0,0.00019178,2]
[333887157,1722599440814,-1376.06,0.00019178,2]
[333887159,1722599440823,-3523.23,0.00019178,2]
[333887161,1722599440833,-500.0,0.00019178,2]
[333887163,1722599440843,-744.82,0.00019178,2]
[333887165,1722599440852,-500.0,0.00019178,2]
[333887167,1722599440861,-500.0,0.00019178,2]
[333887169,1722599440871,-518.82,0.00019178,2]
[333887171,1722599440880,-2209.87,0.00019178,2]
[333887173,1722599440891,-1605.92,0.00019178,2]
[333887175,1722599440900,-625.3,0.00019178,2]
[333887177,1722599440909,-1674.86,0.00019178,2]
[333887179,1722599440919,-592.46,0.00019178,2]
[333887181,1722599440928,-667.63,0.00019178,2]
[333887183,1722599440937,-1144.03,0.00019178,2]
[333887185,1722599440946,-235.06726035,0.00019178,2]
[333887187,1722599440955,-500.0,0.00019178,2]
[333887189,1722599440965,-1244.86,0.00019178,2]
[333887191,1722599440976,-658.51,0.00019178,2]
[333887193,1722599440985,-500.0,0.00019178,2]
[333887195,1722599440994,-500.0,0.00019178,2]
[333887197,1722599441003,-500.0,0.00019178,2]
[333887199,1722599441013,-3707.92,0.00019178,2]
[333887201,1722599441022,-823.12,0.00019178,2]
[333887203,1722599441031,-500.0,0.00019178,2]
[333887205,1722599441039,-500.0,0.00019178,2]
[333887206,1722599441048,-1268.27,0.00019178,2]
[333887208,1722599441057,-1933.97,0.00019178,2]
[333887210,1722599441066,-1323.96,0.00019178,2]
[333887212,1722599441075,-500.0,0.00019178,2]
[333887214,1722599441085,-500.0,0.00019178,2]
[333887216,1722599441094,-500.0,0.00019178,2]
[333887218,1722599441103,-1148.51,0.00019178,2]
[333887220,1722599441113,-1013.6,0.00019178,2]
[333887222,1722599441123,-500.0,0.00019178,2]
[333887224,1722599441133,-774.37,0.00019178,2]
[333887226,1722599441144,-500.0,0.00019178,2]
[333887228,1722599441157,-500.0,0.00019178,2]
[333887229,1722599441168,-500.0,0.00019178,2]
[333887230,1722599441177,-936.8,0.00019178,2]
[333887231,1722599441186,-626.45,0.00019178,2]
[333887232,1722599441195,-3549.91,0.00019178,2]
[333887233,1722599441204,-500.0,0.00019178,2]
[333887234,1722599441213,-1166.41,0.00019178,2]
[333887235,1722599441224,-625.05,0.00019178,2]
[333887236,1722599441233,-508.75,0.00019178,2]
[333887237,1722599441242,-500.0,0.00019178,2]
[333887238,1722599441251,-500.0,0.00019178,2]
[333887239,1722599441260,-382.67043037,0.00019178,2]
[333887241,1722599441269,-2000.0,0.00019178,2]
[333887243,1722599441278,-988.76,0.00019178,2]
[333887245,1722599441287,-500.0,0.00019178,2]
[333887247,1722599441296,-665.16,0.00019178,2]
[333887249,1722599441305,-1039.61,0.00019178,2]
[333887251,1722599441315,-404.57825576,0.00019178,2]
[333887253,1722599441324,-1837.66,0.00019178,2]
[333887255,1722599441332,-1285.5,0.00019178,2]
[333887257,1722599441342,-500.0,0.00019178,2]
[333887258,1722599441351,-500.0,0.00019178,2]
[333887260,1722599441360,-500.0,0.00019178,2]
[333887262,1722599441369,-528.23,0.00019178,2]
[333887264,1722599441378,-500.0,0.00019178,2]
[333887266,1722599441387,-500.0,0.00019178,2]
[333887268,1722599441396,-520.47,0.00019178,2]
[333887270,1722599441405,-800.12,0.00019178,2]
[333887272,1722599441414,-1125.83,0.00019178,2]
[333887274,1722599441423,-2417.75,0.00019178,2]
[333887276,1722599441432,-500.0,0.00019178,2]
[333887277,1722599441441,-2561.06,0.00019178,2]
[333887279,1722599441450,-500.0,0.00019178,2]
[333887281,1722599441459,-1091.6,0.00019178,2]
[333887283,1722599441468,-2214.16,0.00019178,2]
[333887284,1722599441478,-500.0,0.00019178,2]
[333887286,1722599441494,-500.0,0.00019178,2]
[333887288,1722599441503,-500.0,0.00019178,2]
[333887290,1722599441512,-500.0,0.00019178,2]
[333887292,1722599441521,-500.0,0.00019178,2]
[333887294,1722599441530,-738.02,0.00019178,2]
[333887296,1722599441539,-500.0,0.00019178,2]
[333887298,1722599441548,-1341.49,0.00019178,2]
[333887299,1722599441558,-500.0,0.00019178,2]
[333887301,1722599441568,-500.0,0.00019178,2]
[333887303,1722599441577,-893.72,0.00019178,2]
[333887305,1722599441586,-500.0,0.00019178,2]
[333887307,1722599441595,-529.38,0.00019178,2]
[333887309,1722599441604,-1869.21,0.00019178,2]
[333887311,1722599441613,-500.0,0.00019178,2]
[333887313,1722599441623,-500.0,0.00019178,2]
[333887315,1722599441632,-500.0,0.00019178,2]
[333887317,1722599441642,-1089.66,0.00019178,2]
[333887319,1722599441651,-2038.83,0.00019178,2]
[333887321,1722599441661,-839.17,0.00019178,2]
[333887322,1722599441670,-500.0,0.00019178,2]
[333887324,1722599441680,-500.0,0.00019178,2]
[333887326,1722599441690,-588.19,0.00019178,2]
[333887328,1722599441699,-698.41,0.00019178,2]
[333887330,1722599441709,-301.96782438,0.00019178,2]
[333887332,1722599441718,-2456.5,0.00019178,2]
[333887334,1722599441729,-3591.12,0.00019178,2]
[333887336,1722599441739,-1177.04,0.00019178,2]
[333887338,1722599441748,-500.0,0.00019178,2]
[333887340,1722599441757,-645.24,0.00019178,2]
[333887342,1722599441767,-500.0,0.00019178,2]
[333887343,1722599441776,-500.0,0.00019178,2]
[333887345,1722599441786,-524.74,0.00019178,2]
[333887347,1722599441795,-500.0,0.00019178,2]
[333887349,1722599441804,-2214.02,0.00019178,2]
[333887351,1722599441813,-989.93,0.00019178,2]
[333887353,1722599441822,-239.01781435,0.00019178,2]
[333887355,1722599441832,-838.12,0.00019178,2]
[333887357,1722599441841,-1275.54,0.00019178,2]
[333887359,1722599441850,-500.0,0.00019178,2]
[333887361,1722599441860,-979.08,0.00019178,2]
[333887363,1722599441869,-2329.33,0.00019178,2]
[333887364,1722599441878,-991.52,0.00019178,2]
[333887366,1722599441887,-1436.39,0.00019178,2]
[333887368,1722599441897,-1782.87,0.00019178,2]
[333887370,1722599441906,-500.0,0.00019178,2]
[333887372,1722599441915,-4757.2,0.00019178,2]
[333887374,1722599441924,-500.0,0.00019178,2]
[333887376,1722599441934,-500.0,0.00019178,2]
[333887378,1722599441944,-500.0,0.00019178,2]
[333887380,1722599441954,-823.48,0.00019178,2]
[333887382,1722599441963,-251.90488492,0.00019178,2]
[333887384,1722599441973,-180.32592036,0.00019178,2]
[333887385,1722599441982,-500.0,0.00019178,2]
[333887387,1722599441992,-554.73,0.00019178,2]
[333887389,1722599442001,-500.0,0.00019178,2]
[333887391,1722599442013,-1746.65,0.00019178,2]
[333887393,1722599442022,-752.27,0.00019178,2]
[333887395,1722599442031,-3722.48,0.00019178,2]
[333887397,1722599442041,-914.95,0.00019178,2]
[333887399,1722599442052,-606.42,0.00019178,2]
[333887401,1722599442061,-500.0,0.00019178,2]
[333887403,1722599442070,-1573.25,0.00019178,2]
[333887405,1722599442080,-500.0,0.00019178,2]
[333887407,1722599442089,-500.0,0.00019178,2]
[333887409,1722599442098,-500.0,0.00019178,2]
[333887411,1722599442107,-1655.28,0.00019178,2]
[333887413,1722599442117,-500.0,0.00019178,2]
[333887415,1722599442126,-1278.36,0.00019178,2]
[333887417,1722599442136,-1458.4,0.00019178,2]
[333887419,1722599442149,-500.0,0.00019178,2]
[333887421,1722599442160,-500.0,0.00019178,2]
[333887423,1722599442169,-580.72,0.00019178,2]
[333887425,1722599442179,-1257.87,0.00019178,2]
[333887427,1722599442189,-500.0,0.00019178,2]
[333887429,1722599442199,-500.0,0.00019178,2]
[333887431,1722599442208,-500.0,0.00019178,2]
[333887433,1722599442219,-500.0,0.00019178,2]
[333887435,1722599442231,-2524.84,0.00019178,2]
[333887437,1722599442240,-1909.31,0.00019178,2]
[333887439,1722599442249,-842.18,0.00019178,2]
[333887441,1722599442259,-2309.69,0.00019178,2]
[333887443,1722599442268,-500.0,0.00019178,2]
[333887445,1722599442277,-500.0,0.00019178,2]
[333887447,1722599442286,-1519.6,0.00019178,2]
[333887449,1722599442296,-500.0,0.00019178,2]
[333887451,1722599442307,-1641.55,0.00019178,2]
[333887453,1722599442316,-1348.41,0.00019178,2]
[333887455,1722599442325,-500.0,0.00019178,2]
[333887457,1722599442336,-500.0,0.00019178,2]
[333887459,1722599442346,-500.0,0.00019178,2]
[333887461,1722599442356,-643.1,0.00019178,2]
[333887463,1722599442365,-635.18,0.00019178,2]
[333887465,1722599442374,-903.58,0.00019178,2]
[333887467,1722599442383,-524.51,0.00019178,2]
[333887469,1722599442393,-524.4,0.00019178,2]
[333887471,1722599442402,-270.88738453,0.00019178,2]
[333887473,1722599442411,-500.0,0.00019178,2]
[333887475,1722599442421,-500.0,0.00019178,2]
[333887477,1722599442431,-500.0,0.00019178,2]
[333887479,1722599442441,-500.0,0.00019178,2]
[333887481,1722599442451,-2039.54,0.00019178,2]
[333887483,1722599442460,-1968.99,0.00019178,2]
[333887485,1722599442470,-1049.63,0.00019178,2]
[333887487,1722599442480,-500.0,0.00019178,2]
[333887489,1722599442489,-500.0,0.00019178,2]
[333887491,1722599442499,-500.0,0.00019178,2]
[333887493,1722599442508,-500.0,0.00019178,2]
[333887495,1722599442517,-2453.51,0.00019178,2]
[333887497,1722599442535,-500.0,0.00019178,2]
[333887499,1722599442543,-500.0,0.00019178,2]
[333887501,1722599442553,-151.0,0.00019178,2]
[333887503,1722599442562,-151.0,0.00019178,2]
[333887505,1722599442571,-500.73,0.00019178,2]
[333887507,1722599442580,-500.0,0.00019178,2]
[333887509,1722599442589,-1497.0,0.00019178,2]
[333887511,1722599442598,-151.0,0.00019178,2]
[333887513,1722599442607,-151.0,0.00019178,2]
[333887515,1722599442616,-1528.79,0.00019178,2]
[333887517,1722599442626,-500.0,0.00019178,2]
[333887519,1722599442635,-500.0,0.00019178,2]
[333887521,1722599442644,-670.97,0.00019178,2]
[333887523,1722599442653,-2603.54,0.00019178,2]
[333887525,1722599442662,-288.92380848,0.00019178,2]
[333887527,1722599442672,-500.0,0.00019178,2]
[333887529,1722599442681,-4232.92,0.00019178,2]
[333887531,1722599442691,-500.0,0.00019178,2]
[333887533,1722599442702,-500.0,0.00019178,2]
[333887535,1722599442712,-500.0,0.00019178,2]
[333887537,1722599442721,-1331.16,0.00019178,2]
[333887539,1722599442730,-1270.37,0.00019178,2]
[333887541,1722599442739,-500.0,0.00019178,2]
[333887543,1722599442749,-2872.45,0.00019178,2]
[333887545,1722599442758,-567.23,0.00019178,2]
[333887547,1722599442767,-500.0,0.00019178,2]
[333887549,1722599442777,-2347.91,0.00019178,2]
[333887551,1722599442786,-1951.8,0.00019178,2]
[333887553,1722599442795,-500.0,0.00019178,2]
[333887555,1722599442805,-544.87,0.00019178,2]
[333887557,1722599442814,-500.0,0.00019178,2]
[333887559,1722599442824,-159.30574138,0.00019178,2]
[333887560,1722599442833,-710.25,0.00019178,2]
[333887562,1722599442843,-1840.96,0.00019178,2]
[333887584,1722599443049,-1147.21,0.00019178,2]
[333887586,1722599443059,-1000.0,0.00019178,2]
[333887588,1722599443069,-500.0,0.00019178,2]
[333887590,1722599443078,-500.0,0.00019178,2]
[333887592,1722599443087,-171.8932844,0.00019178,2]
[333887594,1722599443096,-917.33,0.00019178,2]
[333887595,1722599443106,-500.0,0.00019178,2]
[333887597,1722599443115,-740.61,0.00019178,2]
[333887599,1722599443124,-1624.56,0.00019178,2]
[333887601,1722599443134,-214.81942783,0.00019178,2]
[333887603,1722599443147,-500.0,0.00019178,2]
[333887605,1722599443156,-834.68,0.00019178,2]
[333887607,1722599443166,-500.0,0.00019178,2]
[333887609,1722599443175,-1292.63,0.00019178,2]
[333887611,1722599443186,-1826.7,0.00019178,2]
[333887613,1722599443195,-3699.05,0.00019178,2]
[333887615,1722599443205,-500.0,0.00019178,2]
[333887617,1722599443214,-2341.92,0.00019178,2]
[333887619,1722599443227,-500.0,0.00019178,2]
[333887621,1722599443238,-500.0,0.00019178,2]
[333887623,1722599443248,-1424.05,0.00019178,2]
[333887625,1722599443258,-2411.53,0.00019178,2]
[333887627,1722599443267,-784.08,0.00019178,2]
[333887629,1722599443278,-500.0,0.00019178,2]
[333887631,1722599443288,-500.0,0.00019178,2]
[333887633,1722599443297,-500.0,0.00019178,2]
[333887635,1722599443308,-1521.11,0.00019178,2]
[333887638,1722599443318,-500.0,0.00019178,2]
[333887640,1722599443327,-1410.73,0.00019178,2]
[333887642,1722599443336,-776.58,0.00019178,2]
[333887643,1722599443346,-500.0,0.00019178,2]
[333887644,1722599443355,-613.7070001,0.00019178,2]
[333887645,1722599443366,-1015.94,0.00019178,2]
[333887646,1722599443375,-1194.7,0.00019178,2]
[333887647,1722599443385,-500.0,0.00019178,2]
[333887648,1722599443394,-2642.28,0.00019178,2]
[333887649,1722599443404,-549.07,0.00019178,2]
[333887650,1722599443413,-500.0,0.00019178,2]
[333887651,1722599443422,-500.0,0.00019178,2]
[333887653,1722599443432,-500.0,0.00019178,2]
[333887655,1722599443441,-2489.55,0.00019178,2]
[333887657,1722599443451,-500.0,0.00019178,2]
[333887659,1722599443460,-500.0,0.00019178,2]
[333887661,1722599443470,-500.0,0.00019178,2]
[333887663,1722599443481,-500.0,0.00019178,2]
[333887665,1722599443491,-471.87684083,0.00019178,2]
[333887667,1722599443500,-1375.03,0.00019178,2]
[333887669,1722599443509,-843.69,0.00019178,2]
[333887671,1722599443519,-1462.21224074,0.00019178,2]
[333887686,1722599443604,-982.09775926,0.00019178,2]
[333887687,1722599443613,-304.36184921,0.00019178,2]
[333887689,1722599443625,-684.77815079,0.00019178,2]
[333887692,1722599443634,-500.0,0.00019178,2]
[333887693,1722599443643,-1173.52,0.00019178,2]
[333887695,1722599443652,-500.0,0.00019178,2]
[333887697,1722599443662,-500.0,0.00019178,2]
[333887699,1722599443671,-2097.14,0.00019178,2]
[333887701,1722599443680,-953.67,0.00019178,2]
[333887703,1722599443690,-4341.08,0.00019178,2]
[333887705,1722599443699,-500.0,0.00019178,2]
[333887707,1722599443709,-500.0,0.00019178,2]
[333887709,1722599443718,-988.95,0.00019178,2]
[333887711,1722599443729,-500.0,0.00019178,2]
[333887713,1722599443739,-3510.61,0.00019178,2]
[333887715,1722599443748,-1615.0,0.00019178,2]
[333887717,1722599443757,-500.0,0.00019178,2]
[333887719,1722599443766,-500.0,0.00019178,2]
[333887721,1722599443776,-4129.89,0.00019178,2]
[333887723,1722599443785,-1466.53,0.00019178,2]
[333887725,1722599443794,-500.0,0.00019178,2]
[333887727,1722599443804,-500.0,0.00019178,2]
[333887729,1722599443813,-1882.48,0.00019178,2]
[333887731,1722599443824,-2725.37,0.00019178,2]
[333887733,1722599443833,-500.0,0.00019178,2]
[333887735,1722599443843,-500.0,0.00019178,2]
[333887737,1722599443852,-724.48,0.00019178,2]
[333887739,1722599443862,-3466.49,0.00019178,2]
[333887741,1722599443871,-500.0,0.00019178,2]
[333887743,1722599443881,-500.0,0.00019178,2]
[333887745,1722599443891,-2309.8,0.00019178,2]
[333887747,1722599443900,-2788.82,0.00019178,2]
[333887748,1722599443910,-751.46,0.00019178,2]
[333887750,1722599443919,-537.39,0.00019178,2]
[333887752,1722599443929,-500.0,0.00019178,2]
[333887754,1722599443938,-500.0,0.00019178,2]
[333887757,1722599443948,-5094.75,0.00019178,2]
[333887759,1722599443957,-2187.8,0.00019178,2]
[333887761,1722599443967,-500.0,0.00019178,2]
[333887763,1722599443981,-500.0,0.00019178,2]
[333887765,1722599443990,-1384.27,0.00019178,2]
[333887767,1722599444000,-500.0,0.00019178,2]
[333887769,1722599444011,-1908.73,0.00019178,2]
[333887771,1722599444021,-1213.55,0.00019178,2]
[333887773,1722599444030,-642.25,0.00019178,2]
[333887775,1722599444040,-1265.97,0.00019178,2]
[333887777,1722599444051,-500.0,0.00019178,2]
[333887779,1722599444061,-500.0,0.00019178,2]
[333887781,1722599444071,-2355.07,0.00019178,2]
[333887783,1722599444080,-220.48922354,0.00019178,2]
[333887785,1722599444090,-1602.51,0.00019178,2]
[333887787,1722599444099,-3443.82,0.00019178,2]
[333887789,1722599444109,-1719.93,0.00019178,2]
[333887791,1722599444119,-785.5,0.00019178,2]
[333887793,1722599444129,-1245.69,0.00019178,2]
[333887795,1722599444142,-585.51,0.00019178,2]
[333887797,1722599444151,-500.0,0.00019178,2]
[333887799,1722599444161,-552.25,0.00019178,2]
[333887801,1722599444170,-500.0,0.00019178,2]
[333887802,1722599444180,-500.0,0.00019178,2]
[333887804,1722599444189,-500.0,0.00019178,2]
[333887806,1722599444199,-3412.37,0.00019178,2]
[333887808,1722599444211,-2722.58,0.00019178,2]
[333887811,1722599444223,-500.0,0.00019178,2]
[333887813,1722599444232,-500.0,0.00019178,2]
[333887814,1722599444242,-20000.0,0.00019178,2]
[333887817,1722599444251,-862.9,0.00019178,2]
[333887818,1722599444261,-500.0,0.00019178,2]
[333887821,1722599444271,-651.35,0.00019178,2]
[333887822,1722599444281,-500.0,0.00019178,2]
[333887824,1722599444290,-500.0,0.00019178,2]
[333887826,1722599444299,-1806.2,0.00019178,2]
[333887828,1722599444309,-500.0,0.00019178,2]
[333887830,1722599444320,-1580.99,0.00019178,2]
[333887832,1722599444330,-628.44191939,0.00019178,2]
[333887834,1722599444339,-2716.44,0.00019178,2]
[333887836,1722599444350,-1434.03,0.00019178,2]
[333887839,1722599444360,-1288.44,0.00019178,2]
[333887841,1722599444370,-500.0,0.00019178,2]
[333887843,1722599444379,-767.0,0.00019178,2]
[333887844,1722599444388,-500.0,0.00019178,2]
[333887845,1722599444398,-2533.03,0.00019178,2]
[333887846,1722599444407,-2553.23,0.00019178,2]
[333887847,1722599444417,-607.4,0.00019178,2]
[333887848,1722599444426,-500.0,0.00019178,2]
[333887849,1722599444436,-500.0,0.00019178,2]
[333887850,1722599444445,-648.45,0.00019178,2]
[333887851,1722599444454,-1288.92,0.00019178,2]
[333887852,1722599444463,-1581.78,0.00019178,2]
[333887853,1722599444474,-500.0,0.00019178,2]
[333887854,1722599444483,-500.0,0.00019178,2]
[333887855,1722599444493,-1158.83,0.00019178,2]
[333887856,1722599444502,-500.0,0.00019178,2]
[333887857,1722599444511,-500.0,0.00019178,2]
[333887858,1722599444521,-500.0,0.00019178,2]
[333887859,1722599444531,-2102.51,0.00019178,2]
[333887860,1722599444540,-969.72,0.00019178,2]
[333887861,1722599444549,-500.0,0.00019178,2]
[333887862,1722599444559,-2820.76,0.00019178,2]
[333887863,1722599444568,-151.0,0.00019178,2]
[333887864,1722599444578,-500.0,0.00019178,2]
[333887865,1722599444587,-151.0,0.00019178,2]
[333887866,1722599444597,-2350.04,0.00019178,2]
[333887867,1722599444606,-987.3,0.00019178,2]
[333887868,1722599444616,-672.28,0.00019178,2]
[333887869,1722599444625,-3060.55,0.00019178,2]
[333887871,1722599444634,-1670.98,0.00019178,2]
[333887873,1722599444644,-500.0,0.00019178,2]
[333887875,1722599444654,-500.0,0.00019178,2]
[333887877,1722599444663,-4758.36,0.00019178,2]
[333887879,1722599444672,-547.02,0.00019178,2]
[333887881,1722599444681,-500.0,0.00019178,2]
[333887883,1722599444691,-3183.32,0.00019178,2]
[333887885,1722599444700,-500.0,0.00019178,2]
[333887887,1722599444709,-500.0,0.00019178,2]
[333887889,1722599444719,-570.59,0.00019178,2]
[333887891,1722599444730,-1772.58,0.00019178,2]
[333887893,1722599444739,-500.0,0.00019178,2]
[333887895,1722599444750,-500.0,0.00019178,2]
[333887897,1722599444759,-2422.7,0.00019178,2]
[333887899,1722599444769,-4273.06,0.00019178,2]
[333887901,1722599444779,-500.0,0.00019178,2]
[333887903,1722599444788,-582.57,0.00019178,2]
[333887905,1722599444798,-500.0,0.00019178,2]
[333887907,1722599444808,-500.0,0.00019178,2]
[333887909,1722599444817,-500.0,0.00019178,2]
[333887911,1722599444828,-500.0,0.00019178,2]
[333887913,1722599444838,-619.71873808,0.00019178,2]
[333887915,1722599444847,-500.0,0.00019178,2]
[333887916,1722599444857,-1896.38,0.00019178,2]
[333887917,1722599444867,-3192.32,0.00019178,2]
[333887918,1722599444877,-500.0,0.00019178,2]
[333887919,1722599444886,-632.06,0.00019178,2]
[333887920,1722599444896,-500.77,0.00019178,2]
[333887921,1722599444905,-500.0,0.00019178,2]
[333887922,1722599444915,-1282.19,0.00019178,2]
[333887923,1722599444925,-500.0,0.00019178,2]
[333887924,1722599444934,-3123.73,0.00019178,2]
[333887925,1722599444943,-529.6,0.00019178,2]
[333887926,1722599444952,-1814.03,0.00019178,2]
[333887927,1722599444962,-1251.51,0.00019178,2]
[333887928,1722599444971,-1991.55,0.00019178,2]
[333887929,1722599444981,-500.0,0.00019178,2]
[333887930,1722599444990,-1223.86,0.00019178,2]
[333887931,1722599444999,-1057.75,0.00019178,2]
[333887932,1722599445009,-500.0,0.00019178,2]
[333887933,1722599445018,-259.95506471,0.00019178,2]
[333887934,1722599445027,-1256.33,0.00019178,2]
[333887935,1722599445037,-1054.53,0.00019178,2]
[333887936,1722599445046,-647.97,0.00019178,2]
[333887937,1722599445055,-500.0,0.00019178,2]
[333887938,1722599445065,-731.11,0.00019178,2]
[333887939,1722599445074,-500.0,0.00019178,2]
[333887940,1722599445084,-500.0,0.00019178,2]
[333887941,1722599445093,-2325.91,0.00019178,2]
[333887942,1722599445103,-1125.46,0.00019178,2]
[333887943,1722599445113,-500.0,0.00019178,2]
[333887944,1722599445122,-610.61885259,0.00019178,2]
[333887945,1722599445131,-500.0,0.00019178,2]
[333887946,1722599445143,-3973.02,0.00019178,2]
[333887947,1722599445154,-500.0,0.00019178,2]
[333887948,1722599445164,-2143.3,0.00019178,2]
[333887949,1722599445173,-500.14,0.00019178,2]
[333887950,1722599445183,-1120.3,0.00019178,2]
[333887951,1722599445193,-500.0,0.00019178,2]
[333887952,1722599445203,-500.0,0.00019178,2]
[333887953,1722599445215,-500.0,0.00019178,2]
[333887954,1722599445226,-500.0,0.00019178,2]
[333887955,1722599445235,-578.38,0.00019178,2]
[333887956,1722599445244,-616.38,0.00019178,2]
[333887957,1722599445255,-588.55529803,0.00019178,2]
[333887958,1722599445265,-500.0,0.00019178,2]
[333887959,1722599445629,-2439.22,0.00019178,2]
[333887960,1722599445652,-248.24249807,0.00019178,2]
[333887961,1722599445661,-908.68,0.00019178,2]
[333887962,1722599445671,-500.0,0.00019178,2]
[333887963,1722599445680,-500.0,0.00019178,2]
[333887964,1722599445690,-2594.67,0.00019178,2]
[333887965,1722599445699,-592.76,0.00019178,2]
[333887966,1722599445709,-3153.45,0.00019178,2]
[333887967,1722599445718,-3080.66,0.00019178,2]
[333887968,1722599445728,-955.86,0.00019178,2]
[333887969,1722599445738,-657.9,0.00019178,2]
[333887970,1722599445747,-500.0,0.00019178,2]
[333887971,1722599445757,-500.0,0.00019178,2]
[333887972,1722599445766,-1546.94,0.00019178,2]
[333887973,1722599445776,-500.0,0.00019178,2]
[333887974,1722599445785,-3615.31,0.00019178,2]
[333887975,1722599445795,-1495.41,0.00019178,2]
[333887976,1722599445805,-500.0,0.00019178,2]
[333887977,1722599445815,-612.31,0.00019178,2]
[333887979,1722599445824,-248.4463251,0.00019178,2]
[333887981,1722599445834,-2318.51,0.00019178,2]
[333887983,1722599445843,-500.0,0.00019178,2]
[333887984,1722599445853,-1469.63,0.00019178,2]
[333887985,1722599445863,-3551.33,0.00019178,2]
[333887986,1722599445872,-3415.79,0.00019178,2]
[333887987,1722599445882,-3262.7,0.00019178,2]
[333887989,1722599445892,-500.0,0.00019178,2]
[333887990,1722599445902,-3579.64,0.00019178,2]
[333887991,1722599445911,-500.0,0.00019178,2]
[333887992,1722599445921,-500.0,0.00019178,2]
[333887993,1722599445930,-500.0,0.00019178,2]
[333887994,1722599445941,-2593.96,0.00019178,2]
[333887995,1722599445952,-500.0,0.00019178,2]
[333887996,1722599445963,-721.19,0.00019178,2]
[333887997,1722599445974,-1593.41,0.00019178,2]
[333887998,1722599445984,-844.86,0.00019178,2]
[333887999,1722599445994,-500.0,0.00019178,2]
[333888000,1722599446003,-422.34128822,0.00019178,2]
[333888001,1722599446014,-698.21,0.00019178,2]
[333888002,1722599446024,-500.0,0.00019178,2]
[333888003,1722599446034,-500.0,0.00019178,2]
[333888004,1722599446043,-2961.36,0.00019178,2]
[333888005,1722599446053,-2751.37,0.00019178,2]
[333888006,1722599446063,-1139.52,0.00019178,2]
[333888007,1722599446072,-796.63,0.00019178,2]
[333888008,1722599446082,-500.0,0.00019178,2]
[333888009,1722599446091,-500.0,0.00019178,2]
[333888010,1722599446101,-2385.54,0.00019178,2]
[333888011,1722599446111,-1067.98,0.00019178,2]
[333888012,1722599446121,-2001.76,0.00019178,2]
[333888013,1722599446131,-602.1877716,0.00019178,2]
[333888014,1722599446144,-601.53,0.00019178,2]
[333888015,1722599446154,-500.0,0.00019178,2]
[333888016,1722599446164,-500.0,0.00019178,2]
[333888017,1722599446174,-500.0,0.00019178,2]
[333888018,1722599446185,-1274.41,0.00019178,2]